Cogmind - Beta 13 @@@ ROGUE MODE // 2024.05.30 @ 02:26:53 Player: CanadianCogs Result: Destroyed by G-34 Mercenary with Small Laser Performance ------------- Evolutions (1) 500 Regions Visited (2) 400 Robots Destroyed (19) 95 Value Destroyed (581) 581 Prototype IDs (0) 0 Alien Tech Used (0) 0 Bonus (0) 0 TOTAL SCORE: 1576 Bonus ------- None Cogmind --------- Core Integrity 0/400 Matter 300/300 Energy 227/250 System Corruption 14% Temperature Cool (9) Movement Walking (120) Location -9/Materials Parts ------- > --- POWER (1) -------- Ion Engine > --- PROPULSION (4) --- Aluminum Leg Aluminum Leg Aluminum Leg Aluminum Leg > --- UTILITY (2) ------ Small Storage Unit Signal Interpreter > --- WEAPON (2) ------- EM Pulse Gun EM Pulse Gun > --- INVENTORY (8) ---- Ion Engine Heat Sink Visual Processing Unit Medium Armor Plating Tractor Beam Improved Assault Rifle Peak State ------------ > --- POWER ------------ Ion Engine > --- PROPULSION ------- Aluminum Leg Aluminum Leg Aluminum Leg Aluminum Leg > --- UTILITY ---------- Small Storage Unit Signal Interpreter > --- WEAPON ----------- EM Pulse Gun EM Pulse Gun > --- INVENTORY -------- Heat Sink Heat Sink Visual Processing Unit Medium Armor Plating Tractor Beam Improved Assault Rifle [Rating: 10] Favorites ----------- Power Light Ion Engine Engine Light Ion Engine Propulsion Aluminum Leg Leg Aluminum Leg Hover Unit Hover Unit Utility Small Storage Unit Device Improved Terrain Scanner Storage Small Storage Unit Processor Signal Interpreter Weapon Assault Rifle Energy Gun Medium Laser Ballistic Gun Assault Rifle Impact Weapon Hammer Build | -11 -10 -9 ------- Run | Yrd Mat Mat Slots Evolved 2 | . . 2 Power . | . . . Propulsion 2 | . . 2 Utility . | . . . Weapon . | . . . Parts Attached 34 | 7 9 18 Power 4 | 1 1 2 Engine 4 | 1 1 2 Core . | . . . Reactor . | . . . Propulsion 17 | 2 5 10 Treads . | . . . Leg 14 | 2 3 9 Wheel . | . . . Hover 3 | . 2 1 Flight . | . . . Utility 4 | 2 1 1 Device 1 | 1 . . Storage 1 | 1 . . Processor 2 | . 1 1 Hackware . | . . . Protection . | . . . Artifact . | . . . Weapon 9 | 2 2 5 Energy Gun 6 | . 2 4 Energy Cannon . | . . . Ballistic Gun 2 | 2 . . Ballistic Cannon . | . . . Launcher . | . . . Special Weapon . | . . . Impact Weapon 1 | . . 1 Slashing Weapon . | . . . Piercing Weapon . | . . . Special Melee Weapon . | . . . Unidentified Prototypes . | . . . Corrupted Parts 3 | . . 3 System Corruption 4 | . . 4 Parts Lost 11 | . 1 10 Power 1 | . . 1 Propulsion 6 | . 1 5 Utility 1 | . . 1 Weapon 3 | . . 3 Highest Loss Streak 8 | . 1 8 To Critical Strikes . | . . . Average Slot Usage (%) 92 | . 98 83 Engine 11 | . 14 6 Leg 27 | . 21 35 Hover 3 | . 5 . Device 4 | . 7 . Storage 12 | . 14 11 Processor 8 | . 7 9 Energy Gun 9 | . 3 17 Ballistic Gun 14 | . 23 . Naked Turns . | . . . Heaviest Build 14 | 13 14 14 Greatest Support 40 | 20 20 40 Greatest Overweight (x) 3 | . 3 2 Average Overweight (x) . | . . . Largest Inventory Capacity 8 | 8 8 8 Average Capacity 7 | 7 8 8 Most Carried 8 | 5 8 8 Average Carried 4 | . 4 5 Final Capacity 8 | 8 8 8 Final Carried 6 | . 6 6 Class Distribution -------------------- 52% | Mutant 47% | Scavenger-Mutant Dominant Class ---------------- Mutant | -10/Materials Scavenger-Mutant | -9/Materials Resources | -11 -10 -9 ----------- Run | Yrd Mat Mat Matter Collected 745 | 212 339 194 Remotely . | . . . Salvage Created 754 | 26 383 345 Parts 48 | 2 23 23 Haulers Intercepted . | . . . Recyclers Shooed 1 | . . 1 Parts Field Recycled . | . . . Retrieved Matter . | . . . Parts Self-Destructed . | . . . Prevented . | . . . Kills | -11 -10 -9 ------- Run | Yrd Mat Mat Combat Hostiles Destroyed 15 | . 7 8 Melee 1 | . . 1 Guns 13 | . 7 6 Classes Destroyed 6 | 1 3 2 Tunneler 1 | 1 . . Recycler 1 | . 1 . Watcher 2 | . 1 1 Grunt 13 | . 7 6 Brawler 1 | . . 1 Sentry 1 | . . 1 Best Kill Streak 4 | 1 3 4 Combat Bots Only 4 | . 3 4 Max Kills in Single Turn 2 | 1 2 1 Gunslinging 1 | . 1 . Exploded . | . . . Melee 1 | . . 1 Uniques/NPCs Destroyed . | . . . Combat | -11 -10 -9 -------- Run | Yrd Mat Mat Hostile Shots Fired 158 | . 41 117 Missed 41 | . 10 31 Damage Taken 1548 | . 384 1164 Core 515 | . 107 408 Absorbed by Shields . | . . . Core Remaining (%) 78 | 100 57 . Volleys Fired 69 | 4 32 33 Largest 2 | 2 2 2 Hottest 100 | 40 40 100 Shots Fired 122 | 8 64 50 Gun 122 | 8 64 50 Cannon . | . . . Launcher . | . . . Special . | . . . Kinetic 72 | 8 64 . Thermal 38 | . . 38 Explosive . | . . . Electromagnetic 12 | . . 12 Robot Hit Streak 21 | 7 21 8 Robot Miss Streak 3 | . 2 3 Penetration Max . | . . . Secondary Targets 3 | . 2 1 Max Gunslinging Chain 1 | . 1 1 Shots Hit Robots 100 | 7 51 42 Core Hits 35 | 1 19 15 Critical Kills 1 | . . 1 Critical Parts Destroyed . | . . . Critical Strikes 2 | . . 2 Burn 1 | . . 1 Smash 1 | . . 1 Melee Attacks 13 | . . 13 Impact 13 | . . 13 Slashing . | . . . Piercing . | . . . Sneak Attacks . | . . . Combat Hostiles . | . . . Follow-up Attacks . | . . . Damage Inflicted 1356 | 84 641 631 Guns 1115 | 84 641 390 Cannons . | . . . Explosions . | . . . Melee 241 | . . 241 Ramming . | . . . Kinetic 725 | 84 641 . Thermal 311 | . . 311 Explosive . | . . . Electromagnetic 79 | . . 79 Impact 241 | . . 241 Slashing . | . . . Piercing . | . . . Highest Corruption 14 | . . 14 Average Corruption 11 | . . 11 Corruption Purged . | . . . Corruption Blocked . | . . . Effects 8 | . . 8 Message Errors 3 | . . 3 Matter Fused 3 | . . 3 Parts Rejected 1 | . . 1 Data Loss (minor) 1 | . . 1 Overload Shots . | . . . Overflow Damage 7 | . . 7 Projectiles . | . . . Explosions . | . . . Melee 7 | . . 7 Knockbacks . | . . . Impact . | . . . Kinetic . | . . . Secondary . | . . . Self-Inflicted Damage . | . . . Shots . | . . . Rammed . | . . . Targets Rammed . | . . . Kicked . | . . . Crushed . | . . . Highest Temperature 244 | . 6 244 Average Temperature 92 | . 2 105 Received Heat Transfer 669 | . 198 471 Effects 2 | . . 2 Energy Bleed 2 | . . 2 Siege Activations . | . . . Robots Corrupted . | . . . Combat Hostiles . | . . . Parts Fried 1 | . . 1 Impact Corruptions 1 | . . 1 Robots Melted . | . . . Combat Hostiles . | . . . Parts Melted . | . . . Heat Transferred 999 | . . 999 Parts Sabotaged . | . . . Parts Stolen . | . . . Parts Stripped . | . . . Power Chain Reactions . | . . . Alert | -11 -10 -9 ------- Run | Yrd Mat Mat Peak Influence 195 | 5 140 195 Initial 57 | . 3 57 Average 95 | 1 85 125 Maximum Alert Level . | . . . Low Security (%) 100 | 100 100 100 Level 1 . | . . . Level 2 . | . . . Level 3 . | . . . Level 4 . | . . . Level 5 . | . . . High Security . | . . . Max Security . | . . . Squads Dispatched 5 | . 4 1 Investigation 4 | . 3 1 Extermination . | . . . Reinforcement 1 | . 1 . Assault . | . . . Garrison . | . . . Intercept . | . . . Searches Triggered . | . . . Construction Impeded . | . . . Haulers Reinforced . | . . . Active Scanning Responses . | . . . Cargo Convoy Interrupts . | . . . Stealth | -11 -10 -9 --------- Run | Yrd Mat Mat Distress Signals . | . . . Communications Jammed . | . . . Distress Signals . | . . . Times Spotted 27 | . 16 11 Peak Tracking Total 5 | . 5 5 Tactical Retreats 1 | . 1 . Traps | -11 -10 -9 ------- Run | Yrd Mat Mat Traps Triggered 3 | . 3 . Indirectly . | . . . Trap Hack Attempts . | . . . Triggered . | . . . Disarmed . | . . . Reprogrammed . | . . . Reused . | . . . Traps Extracted . | . . . Installed . | . . . Triggered . | . . . Machines | -11 -10 -9 ---------- Run | Yrd Mat Mat Machines Disabled . | . . . Max in Single Turn . | . . . Machines Repaired . | . . . Machines Dismantled . | . . . Machines Sabotaged . | . . . Overloaded Fab Kills . | . . . Hacking | -11 -10 -9 --------- Run | Yrd Mat Mat Machines Accessed 7 | . 5 2 Terminals 7 | . 5 2 Fabricators . | . . . Repair Stations . | . . . Recycling Units . | . . . Scanalyzers . | . . . Garrison Access . | . . . Total Hacks 23 | . 16 7 Successful 10 | . 8 2 Failed 13 | . 8 5 Catastrophic 3 | . 1 2 Database Lockouts . | . . . Manual 21 | . 18 3 Terminals 23 | . 16 7 Fabricators . | . . . Repair Stations . | . . . Recycling Units . | . . . Scanalyzers . | . . . Garrison Access . | . . . Terminal Hacks 7 | . 6 1 Part Schematic 1 | . 1 . Robot Schematic 4 | . 4 . Hauler Manifests 1 | . . 1 Zone Layout 1 | . 1 . Fabricator Hacks . | . . . Repair Station Hacks . | . . . Recycling Unit Hacks . | . . . Scanalyzer . | . . . Garrison Access Hacks . | . . . Unauthorized Hacks 3 | . 2 1 Terminals 3 | . 2 1 Botnet 3 | . 2 1 Fabricators . | . . . Repair Stations . | . . . Recycling Units . | . . . Scanalyzers . | . . . Garrison Access . | . . . Data Cores Recovered . | . . . Used . | . . . Hacking Detections 7 | . 5 2 Full Trace Events 4 | . 3 1 Feedback Events . | . . . Feedback Blocked . | . . . Robot Schematics Acquired 4 | . 4 . Robots Built . | . . . Authchips . | . . . Time . | . . . Total Robot Build Rating . | . . . Part Schematics Acquired 1 | . 1 . Parts Built . | . . . Authchips . | . . . Time . | . . . Total Part Build Rating . | . . . Parts Repaired . | . . . Time . | . . . Parts Recycled . | . . . Recycled Matter . | . . . Retrieved Matter . | . . . Retrieved Components . | . . . Parts Scanalyzed . | . . . Part Schematics Acquired . | . . . Parts Damaged . | . . . Bothacking | -11 -10 -9 ------------ Run | Yrd Mat Mat Used RIF Installer . | . . . Robots Hacked . | . . . Non-combat . | . . . Combat . | . . . Robot Hacks Applied . | . . . Relay Couplers Released . | . . . Fabnet Peak Effective % . | . . . Robots Rewired . | . . . Allies Hacked . | . . . Hacks Repelled . | . . . Allies | -11 -10 -9 -------- Run | Yrd Mat Mat Total Allies . | . . . Largest Group . | . . . Highest-Rated Group . | . . . Highest-Rated Ally . | . . . Total Orders . | . . . Ally Attacks . | . . . Total Damage . | . . . Kills . | . . . Allies Corrupted . | . . . Allies Melted . | . . . Intel | -11 -10 -9 ------- Run | Yrd Mat Mat Robot Analysis Total . | . . . Derelict Logs Recovered . | . . . Drone Launches . | . . . Drone Recoveries . | . . . Exploration | -11 -10 -9 ------------- Run | Yrd Mat Mat Turns Passed 1098 | 60 623 415 Spaces Moved 581 | 37 355 189 Core 29 | 15 3 11 Treads . | . . . Legs 486 | 22 286 178 Wheels . | . . . Hover 66 | . 66 . Flight . | . . . Fastest Speed 50 | 50 56 100 Average Speed 111 | 91 109 120 Slowest Speed 200 | 120 200 150 Overloaded Moves . | . . . Propulsion Burnouts . | . . . Robots Hopped . | . . . Cave-ins Triggered . | . . . Exploration Rate (%) 22 | 3 49 14 Regions Visited 2 Branch Regions . Pre-discovered Areas . | . . . Known Exits Taken 1 | . 1 . Unknown Exits Taken 1 | 1 . . Scrap Searched . | . . . Spaces Dug . | . . . Terrain Destroyed . | . . . Melee . | . . . Projectile . | . . . AOE . | . . . Terrain Rammed . | . . . Walls Destroyed . | . . . Machines Disabled . | . . . Actions | -11 -10 -9 --------- Run | Yrd Mat Mat Total 888 | 55 527 306 Wait 139 | . 111 28 Move 579 | 36 354 189 Hop . | . . . Pick Up 40 | 7 13 20 Fast Attach 3 | 1 2 . Attach 25 | 6 3 16 Detach . | . . . Swap 6 | . 4 2 Drop 14 | 1 8 5 Fire 69 | 4 32 33 Melee 13 | . . 13 Ram . | . . . Kick . | . . . Crush . | . . . Escape Stasis . | . . . Rewire . | . . . Trap . | . . . Miscellaneous . | . . . Route ------- -11/Scrapyard -10/Materials -9/Materials History --------- Turn | Location | Event 7 | -11/Scrapyard | Discovered new exit (range 15) 61 | -11/Scrapyard | Entered Materials 300 | -10/Materials | Build established: Mutant 450 | -10/Materials | Discovered new exit (range 13) 683 | -10/Materials | Identified exit to Materials 684 | -10/Materials | Entered another Materials area 684 | -9/Materials | Evolved 2 slots: Propulsion x2 811 | -9/Materials | Build established: Scavenger-Mutant 867 | -9/Materials | System corruption reached 10% 956 | -9/Materials | Core integrity fell below 50% 970 | -9/Materials | Core integrity fell below 20% 999 | -9/Materials | Lost 8 parts (1p5n2w) 1099 | -9/Materials | Destroyed by G-34 Mercenary with Small Laser Last Messages --------------- 01016_ Corrupted Aluminum Leg temporarily disabled. 01017_ Acquired Aluminum Leg. 01024_ /TVUA3LI=28FMOZYU3SWKJURB2G 01033_ Dropped EM Pulse Gun. 01035_ Acquired EM Pulse Gun. 01041_ Acquired Prototype Ballistic Gun. 01042_ Door malfunctions. 01047_ System corrupted: Matter fused (-10). 01054_ Acquired Ion Engine. 01057_ Acquired Heat Sink. 01058_ Extracted 79 matter. 01060_ Dropped Heat Sink. 01066_ Acquired Corrupted Ion Engine. 01068_ K-01 Serf collects debris. 01070_ Acquired 31 matter. 01072_ K-01 Serf collects debris. 01073_ Connecting with Terminal... 01074_ K-01 Serf collects debris. 01078_ K-01 Serf cleans the Terminal. 01078_ K-01 Serf collects debris. Map ----- +----------------------------------------------------+ | ?????????????????????????????????????????????????? | | ?????????????????????????????????????????????????? | | ?????????????????????????????????????????????????? | | ?????????????????????????????????????????????????? | | ????????????????????????? ???????????????????????? | | ????????????????????????? ???????????????????????? | | ????????????????????????? ""?????????????????????? | | ????????????????????????? ""?????????????????????? | | ????????????????????????? "?????????????????????? | | ????????????????????????? ?????????????????????? | | ???????????? ###+########+#####?????????????????? | | ??????????? ##%########??????????? | | ??????????? # [%[ #??????????? | | ??????????? #" %= #??????????? | | ??????????????????#######g #T=![ #??????????? | | ????????????????????????# #"![! #??????????? | | ????????????????????????# # ! #??????????? | | ????????????????????????# + #??????????? | | ????????????????????????# # #??????????? | | ????????????????????????# # #??????????? | | ????????????????????????# ###########??????????? | | ????????????????????????# # #?????????????? | | ????????????????????????# # "" #?????????????? | | ????????????????????????# # T" #?????????????? | | ????????????????????????# + "" #?????????????? | | ????????????????????????#@ # #?????????????? | | ????????????????????????# # #?????????????? | | ????????????????????????# ##########???????????? | | ????????????????????????# # #???????????? | | ????????????????????????# # % #???????????? | | ????????????????????????# #% #???????????? | | ????????????????????????# %+ #???????????? | | ????????????????????????# # #???????????? | | ????????????????????????# # #???????????? | | ????????????????????????# u# #???????????? | | ????????????????????????# # #???????????? | | ????????????????????????# # #???????????? | | ????????????????????????# ##########???????????? | | ????????????????????????# #????????????????????? | | ????????????????????????# #????????????????????? | | ????????????????????????# #??????########??????? | | ????????????????????????# #??????# #??????? | | ????????????????????????# #??????# """ #??????? | | ????????????????????????# #??????# """ #??????? | | ????????????????????????# #??????# """ #??????? | | ????????????????????????# #??????# """ #??????? | | ???????????????????????## ##?????# #??????? | | ???????????????????????# ##########+########## | | ???????????????????????# | | ???????????????????????# | +----------------------------------------------------+ Best States ------------- Heat Dissipation 28 Energy Generation 10 Energy Capacity 250 Matter Stores 300 Matter Capacity 300 Sight Range 16 Terrain Scan Range 16 Terrain Scan Density 10 Evasion (%) 55 Item Schematics ----------------- Signal Interpreter | -10/Materials | Hacked Robot Schematics ------------------ G-34 Mercenary | -10/Materials | Hacked W-16 Scout | -10/Materials | Hacked O-16 Technician | -10/Materials | Hacked A-02 Transporter | -10/Materials | Hacked Fabricated ------------ Nothing Alien Tech Used ----------------- None Achievements -------------- None Challenges ------------ None Game ------ Seed GrenadeMappingNukerbomber Manual? 0 Play Time 00:25:07 Cumulative 33.7 hours Start 2024.05.30 @ 02:02:58 End 2024.05.30 @ 02:26:53 Sessions 1 Manual Loads 0 Difficulty Rogue Special Mode None Game No. 59 Rogue 59 Adventurer 0 Explorer 0 Win Type - Total 0 Types 0/0/0/0/0/0/0/0/0 Lore% 21 Gallery% 29 Achievement% 26 Wizard Run 0 Options --------- Layout 0 ASCII 0 Keyboard 0 Movement Mouse Keybinds 0 Fullscreen 2 Font 18/SmallcapsGlow Map View 38x25 Zoom Use 99% Tactical HUD 1 Map Filters NONE Filters NONE Steam 1 RUN: 5fe3e3ac-534c-41a3-b25e-596f38a9530c